[Event "Titled Tuesday Blitz March 15 Early 2022"]
[White "Tsatsalashvili, Keti"]
[Black "Horobetz, Graham"]
[WhiteFideId "13603434"]
[BlackFideId "2047322"]
[WhiteElo "2246"]
[BlackElo "2600"]
[Result "1/2-1/2"]
[Round "03"]
[TimeControl "180+1"]
[Date "2022.03.15"]
[WhiteClock "0:00:16"]
[BlackClock "0:00:11"]

1. d4 {[%clk 0:03:00]}  Nf6 {[%clk 0:02:58]} 2. c4 {[%clk 0:03:00]}  e6 {[%clk 0:02:59]} 3. Nf3 {[%clk 0:02:59]}  Bb4+ {[%clk 0:02:59]} 4. Nbd2 {[%clk 0:02:56]}  d5 {[%clk 0:02:51]} 5. g3 {[%clk 0:02:51]}  O-O {[%clk 0:02:43]} 6. Bg2 {[%clk 0:02:49]}  dxc4 {[%clk 0:02:43]} 7. Qc2 {[%clk 0:02:45]}  b5 {[%clk 0:02:25]} 8. O-O {[%clk 0:02:40]}  Nc6 {[%clk 0:02:18]} 9. a4 {[%clk 0:02:31]}  Bb7 {[%clk 0:01:45]} 10. axb5 {[%clk 0:01:57]}  Nxd4 {[%clk 0:01:45]} 11. Nxd4 {[%clk 0:01:58]}  Bxg2 {[%clk 0:01:45]} 12. Kxg2 {[%clk 0:01:59]}  Qxd4 {[%clk 0:01:34]} 13. Qxc4 {[%clk 0:01:52]}  Qd5+ {[%clk 0:01:17]} 14. Qxd5 {[%clk 0:01:51]}  exd5 {[%clk 0:01:18]} 15. Nb3 {[%clk 0:01:43]}  Rfb8 {[%clk 0:01:08]} 16. Bf4 {[%clk 0:01:29]}  Rxb5 {[%clk 0:00:52]} 17. Bxc7 {[%clk 0:01:27]}  a5 {[%clk 0:00:50]} 18. Nd4 {[%clk 0:01:20]}  Rb7 {[%clk 0:00:47]} 19. Rfc1 {[%clk 0:01:14]}  h6 {[%clk 0:00:35]} 20. Be5 {[%clk 0:00:55]}  Nd7 {[%clk 0:00:33]} 21. Bf4 {[%clk 0:00:54]}  Bf8 {[%clk 0:00:32]} 22. Ra2 {[%clk 0:00:47]}  Nc5 {[%clk 0:00:32]} 23. Bd2 {[%clk 0:00:40]}  a4 {[%clk 0:00:29]} 24. Bc3 {[%clk 0:00:27]}  Rc8 {[%clk 0:00:23]} 25. Nf3 {[%clk 0:00:21]}  Nb3 {[%clk 0:00:21]} 26. Rd1 {[%clk 0:00:20]}  a3 {[%clk 0:00:17]} 27. Be5 {[%clk 0:00:12]}  Nc1 {[%clk 0:00:17]} 28. Ra1 {[%clk 0:00:09]}  axb2 {[%clk 0:00:15]} 29. Bxb2 {[%clk 0:00:09]}  Rxb2 {[%clk 0:00:14]} 30. Raxc1 {[%clk 0:00:10]}  Rxc1 {[%clk 0:00:14]} 31. Rxc1 {[%clk 0:00:11]}  Rxe2 {[%clk 0:00:15]} 32. Rd1 {[%clk 0:00:11]}  Bc5 {[%clk 0:00:14]} 33. Rxd5 {[%clk 0:00:11]}  Rxf2+ {[%clk 0:00:14]} 34. Kh3 {[%clk 0:00:11]}  Rxf3 {[%clk 0:00:13]} 35. Rxc5 {[%clk 0:00:12]}  Rf2 {[%clk 0:00:13]} 36. g4 {[%clk 0:00:10]}  g6 {[%clk 0:00:12]} 37. Kg3 {[%clk 0:00:11]}  Rd2 {[%clk 0:00:12]} 38. h4 {[%clk 0:00:11]}  Kg7 {[%clk 0:00:12]} 39. h5 {[%clk 0:00:10]}  Rd6 {[%clk 0:00:10]} 40. hxg6 {[%clk 0:00:10]}  fxg6 {[%clk 0:00:11]} 41. Rb5 {[%clk 0:00:11]}  Kf6 {[%clk 0:00:11]} 42. Rc5 {[%clk 0:00:11]}  Re6 {[%clk 0:00:10]} 43. Rb5 {[%clk 0:00:11]}  Re5 {[%clk 0:00:11]} 44. Rb6+ {[%clk 0:00:11]}  Kg5 {[%clk 0:00:11]} 45. Rb3 {[%clk 0:00:11]}  Rd5 {[%clk 0:00:11]} 46. Rc3 {[%clk 0:00:11]}  Rb5 {[%clk 0:00:12]} 47. Rd3 {[%clk 0:00:11]}  Rb6 {[%clk 0:00:10]} 48. Rd5+ {[%clk 0:00:11]}  Kf6 {[%clk 0:00:10]} 49. Rc5 {[%clk 0:00:12]}  Re6 {[%clk 0:00:09]} 50. Rb5 {[%clk 0:00:12]}  Re5 {[%clk 0:00:09]} 51. Rb6+ {[%clk 0:00:10]}  Kg5 {[%clk 0:00:09]} 52. Rb3 {[%clk 0:00:10]}  Rc5 {[%clk 0:00:10]} 53. Rd3 {[%clk 0:00:10]}  Kf6 {[%clk 0:00:09]} 54. Rd6+ {[%clk 0:00:10]}  Kf7 {[%clk 0:00:10]} 55. Rd3 {[%clk 0:00:10]}  Re5 {[%clk 0:00:09]} 56. Rd6 {[%clk 0:00:11]}  Re6 {[%clk 0:00:09]} 57. Rd5 {[%clk 0:00:11]}  Kf6 {[%clk 0:00:08]} 58. Rd4 {[%clk 0:00:12]}  Re5 {[%clk 0:00:09]} 59. Rd6+ {[%clk 0:00:12]}  Kg7 {[%clk 0:00:08]} 60. Rd3 {[%clk 0:00:12]}  Rg5 {[%clk 0:00:08]} 61. Kh3 {[%clk 0:00:12]}  Kf6 {[%clk 0:00:08]} 62. Rd6+ {[%clk 0:00:11]}  Ke5 {[%clk 0:00:08]} 63. Ra6 {[%clk 0:00:11]}  Ke4 {[%clk 0:00:08]} 64. Ra4+ {[%clk 0:00:11]}  Ke5 {[%clk 0:00:09]} 65. Ra5+ {[%clk 0:00:12]}  Kf6 {[%clk 0:00:09]} 66. Ra6+ {[%clk 0:00:12]}  Ke7 {[%clk 0:00:10]} 67. Ra7+ {[%clk 0:00:12]}  Kd6 {[%clk 0:00:11]} 68. Ra6+ {[%clk 0:00:13]}  Kc7 {[%clk 0:00:11]} 69. Ra7+ {[%clk 0:00:13]}  Kb6 {[%clk 0:00:11]} 70. Rh7 {[%clk 0:00:14]}  h5 {[%clk 0:00:10]} 71. gxh5 {[%clk 0:00:14]}  Rxh5+ {[%clk 0:00:11]} 72. Rxh5 {[%clk 0:00:14]}  gxh5 {[%clk 0:00:11]} 73. Kh4 {[%clk 0:00:15]}  Kc6 {[%clk 0:00:11]} 74. Kxh5 {[%clk 0:00:16]} 1/2-1/2


[Site "https://www.chess.com"]

[Event "Titled Tuesday Blitz March 15 Early 2022"]
[White "Winkels, Marcel"]
[Black "Buscar, Michael"]
[WhiteFideId "1003887"]
[BlackFideId "2603616"]
[WhiteElo "1900"]
[BlackElo "2010"]
[Result "0-1"]
[Round "03"]
[TimeControl "180+1"]
[Date "2022.03.15"]
[WhiteClock "0:00:12"]
[BlackClock "0:00:56"]

1. e4 {[%clk 0:03:00]}  c5 {[%clk 0:02:52]} 2. Nf3 {[%clk 0:02:58]}  e6 {[%clk 0:02:51]} 3. d3 {[%clk 0:02:57]}  a6 {[%clk 0:02:50]} 4. g3 {[%clk 0:02:58]}  b5 {[%clk 0:02:51]} 5. Bg2 {[%clk 0:02:58]}  Bb7 {[%clk 0:02:51]} 6. O-O {[%clk 0:02:58]}  d6 {[%clk 0:02:52]} 7. a4 {[%clk 0:02:51]}  Nc6 {[%clk 0:02:49]} 8. axb5 {[%clk 0:02:50]}  axb5 {[%clk 0:02:50]} 9. Rxa8 {[%clk 0:02:48]}  Qxa8 {[%clk 0:02:51]} 10. Nbd2 {[%clk 0:02:45]}  Nge7 {[%clk 0:02:44]} 11. Re1 {[%clk 0:02:44]}  Ng6 {[%clk 0:02:44]} 12. h4 {[%clk 0:02:41]}  h5 {[%clk 0:02:44]} 13. Nf1 {[%clk 0:02:39]}  Be7 {[%clk 0:02:44]} 14. Bg5 {[%clk 0:02:35]}  Nd4 {[%clk 0:02:38]} 15. Bxe7 {[%clk 0:02:26]}  Kxe7 {[%clk 0:02:33]} 16. c3 {[%clk 0:02:22]}  Nxf3+ {[%clk 0:02:26]} 17. Bxf3 {[%clk 0:02:22]}  Ne5 {[%clk 0:02:23]} 18. Bxh5 {[%clk 0:02:18]}  Nxd3 {[%clk 0:02:22]} 19. Qxd3 {[%clk 0:02:03]}  Rxh5 {[%clk 0:02:20]} 20. Rd1 {[%clk 0:02:00]}  Bxe4 {[%clk 0:01:57]} 21. Qxd6+ {[%clk 0:01:57]}  Kf6 {[%clk 0:01:58]} 22. Ne3 {[%clk 0:01:49]}  Bf3 {[%clk 0:01:48]} 23. Re1 {[%clk 0:01:40]}  Qe4 {[%clk 0:01:43]} 24. Kf1 {[%clk 0:01:18]}  g5 {[%clk 0:01:24]} 25. Qd8+ {[%clk 0:00:50]}  Kg7 {[%clk 0:01:18]} 26. Qd2 {[%clk 0:00:31]}  gxh4 {[%clk 0:01:10]} 27. Nc2 {[%clk 0:00:25]}  hxg3 {[%clk 0:01:02]} 28. fxg3 {[%clk 0:00:19]}  Rh1+ {[%clk 0:00:59]} 29. Kf2 {[%clk 0:00:18]}  Rh2+ {[%clk 0:00:58]} 30. Kf1 {[%clk 0:00:18]}  Rxd2 {[%clk 0:00:58]} 31. Rxe4 {[%clk 0:00:15]}  Bxe4 {[%clk 0:00:58]} 32. Ne3 {[%clk 0:00:14]}  Rxb2 {[%clk 0:00:57]} 33. g4 {[%clk 0:00:13]}  b4 {[%clk 0:00:56]} 34. cxb4 {[%clk 0:00:12]}  cxb4 {[%clk 0:00:56]} 35. Nc4 {[%clk 0:00:12]}  Bd3+ {[%clk 0:00:56]} 0-1


[Site "https://www.chess.com"]

[Event "Titled Tuesday Blitz March 15 Early 2022"]
[White "Wong, Yinn Long"]
[Black "Gontcharov, Vladislav"]
[WhiteFideId "5707684"]
[BlackFideId "4123492"]
[WhiteElo "2055"]
[BlackElo "2503"]
[Result "1-0"]
[Round "03"]
[TimeControl "180+1"]
[Date "2022.03.15"]
[WhiteClock "0:00:09"]
[BlackClock "0:00:01"]

1. d4 {[%clk 0:03:00]}  Nf6 {[%clk 0:02:57]} 2. Bf4 {[%clk 0:03:00]}  c5 {[%clk 0:02:53]} 3. e3 {[%clk 0:03:00]}  d5 {[%clk 0:02:48]} 4. Nd2 {[%clk 0:02:59]}  Nc6 {[%clk 0:02:47]} 5. c3 {[%clk 0:02:59]}  e6 {[%clk 0:02:44]} 6. Ngf3 {[%clk 0:02:59]}  Bd6 {[%clk 0:02:43]} 7. Bg3 {[%clk 0:02:59]}  Qc7 {[%clk 0:02:33]} 8. dxc5 {[%clk 0:02:57]}  Bxg3 {[%clk 0:02:30]} 9. hxg3 {[%clk 0:02:57]}  O-O {[%clk 0:02:29]} 10. Bd3 {[%clk 0:02:55]}  Ne7 {[%clk 0:02:27]} 11. b4 {[%clk 0:02:18]}  h6 {[%clk 0:02:26]} 12. Qe2 {[%clk 0:02:15]}  b6 {[%clk 0:02:24]} 13. Nb3 {[%clk 0:02:05]}  a5 {[%clk 0:02:15]} 14. Nfd2 {[%clk 0:01:55]}  Nd7 {[%clk 0:02:07]} 15. cxb6 {[%clk 0:01:41]}  Qxc3 {[%clk 0:02:04]} 16. bxa5 {[%clk 0:01:33]}  Ne5 {[%clk 0:02:00]} 17. Bb5 {[%clk 0:01:31]}  Rxa5 {[%clk 0:01:39]} 18. Rc1 {[%clk 0:01:30]}  Qb2 {[%clk 0:01:36]} 19. Rb1 {[%clk 0:01:27]}  Qxa2 {[%clk 0:01:29]} 20. Nxa5 {[%clk 0:01:26]}  Qxa5 {[%clk 0:01:29]} 21. O-O {[%clk 0:01:17]}  Qxb6 {[%clk 0:01:28]} 22. Nf3 {[%clk 0:01:07]}  Qd6 {[%clk 0:01:10]} 23. Nxe5 {[%clk 0:01:04]}  Qxe5 {[%clk 0:01:10]} 24. Bd3 {[%clk 0:01:02]}  Bd7 {[%clk 0:00:47]} 25. Qb2 {[%clk 0:01:01]}  Qg5 {[%clk 0:00:40]} 26. Qb4 {[%clk 0:00:50]}  Nc6 {[%clk 0:00:34]} 27. Qf4 {[%clk 0:00:50]}  Qe7 {[%clk 0:00:29]} 28. Bb5 {[%clk 0:00:37]}  e5 {[%clk 0:00:28]} 29. Qf3 {[%clk 0:00:38]}  e4 {[%clk 0:00:18]} 30. Qe2 {[%clk 0:00:38]}  Ne5 {[%clk 0:00:14]} 31. Bxd7 {[%clk 0:00:38]}  Qxd7 {[%clk 0:00:14]} 32. Qb5 {[%clk 0:00:35]}  Qe6 {[%clk 0:00:14]} 33. Qe2 {[%clk 0:00:17]}  Ng4 {[%clk 0:00:11]} 34. Rbe1 {[%clk 0:00:12]}  Re8 {[%clk 0:00:10]} 35. f3 {[%clk 0:00:12]}  exf3 {[%clk 0:00:09]} 36. Qxf3 {[%clk 0:00:11]}  Nf6 {[%clk 0:00:08]} 37. Qf5 {[%clk 0:00:10]}  Qb6 {[%clk 0:00:08]} 38. Rf3 {[%clk 0:00:09]}  Re4 {[%clk 0:00:07]} 39. Qc8+ {[%clk 0:00:08]}  Re8 {[%clk 0:00:03]} 40. Qc2 {[%clk 0:00:09]}  d4 {[%clk 0:00:01]} 41. Qd3 {[%clk 0:00:09]} 1-0


[Site "https://www.chess.com"]

[Event "Titled Tuesday Blitz March 15 Early 2022"]
[White "Zomorrodian, Eilia"]
[Black "Sanchez, Robert"]
[WhiteFideId "12551805"]
[BlackFideId "2034360"]
[WhiteElo "2098"]
[BlackElo "2272"]
[Result "0-1"]
[Round "03"]
[TimeControl "180+1"]
[Date "2022.03.15"]
[WhiteClock "0:00:12"]
[BlackClock "0:00:08"]

1. e4 {[%clk 0:03:00]}  e6 {[%clk 0:02:59]} 2. d4 {[%clk 0:02:57]}  d5 {[%clk 0:03:00]} 3. Nd2 {[%clk 0:02:57]}  Nf6 {[%clk 0:02:59]} 4. e5 {[%clk 0:02:58]}  Nfd7 {[%clk 0:03:00]} 5. Bd3 {[%clk 0:02:58]}  c5 {[%clk 0:03:00]} 6. c3 {[%clk 0:02:59]}  Nc6 {[%clk 0:03:00]} 7. Ne2 {[%clk 0:02:59]}  cxd4 {[%clk 0:03:01]} 8. cxd4 {[%clk 0:03:00]}  f6 {[%clk 0:03:01]} 9. exf6 {[%clk 0:03:00]}  Nxf6 {[%clk 0:03:02]} 10. O-O {[%clk 0:03:00]}  Bd6 {[%clk 0:03:03]} 11. Nf3 {[%clk 0:03:01]}  Qc7 {[%clk 0:03:03]} 12. Bg5 {[%clk 0:03:01]}  O-O {[%clk 0:03:03]} 13. Bh4 {[%clk 0:03:00]}  Nh5 {[%clk 0:03:03]} 14. Bg3 {[%clk 0:02:58]}  Nxg3 {[%clk 0:03:01]} 15. hxg3 {[%clk 0:02:59]}  g6 {[%clk 0:02:45]} 16. Nc3 {[%clk 0:02:56]}  a6 {[%clk 0:02:44]} 17. Re1 {[%clk 0:02:55]}  Qg7 {[%clk 0:02:36]} 18. Bc2 {[%clk 0:02:49]}  Bd7 {[%clk 0:02:37]} 19. a3 {[%clk 0:02:47]}  Rac8 {[%clk 0:02:30]} 20. Rc1 {[%clk 0:02:39]}  Na5 {[%clk 0:02:28]} 21. Bb1 {[%clk 0:02:38]}  Nc4 {[%clk 0:02:27]} 22. Qe2 {[%clk 0:02:38]}  Rxf3 {[%clk 0:02:17]} 23. gxf3 {[%clk 0:02:23]}  Qxd4 {[%clk 0:02:17]} 24. f4 {[%clk 0:02:15]}  Nxa3 {[%clk 0:02:04]} 25. Rcd1 {[%clk 0:01:15]}  Qc4 {[%clk 0:01:01]} 26. Bd3 {[%clk 0:00:52]}  Qb3 {[%clk 0:00:52]} 27. Nxd5 {[%clk 0:00:47]}  exd5 {[%clk 0:00:52]} 28. bxa3 {[%clk 0:00:47]}  Re8 {[%clk 0:00:40]} 29. Qf3 {[%clk 0:00:39]}  Rxe1+ {[%clk 0:00:34]} 30. Rxe1 {[%clk 0:00:40]}  Bc6 {[%clk 0:00:25]} 31. Qe2 {[%clk 0:00:19]}  Qc3 {[%clk 0:00:15]} 32. Qe6+ {[%clk 0:00:18]}  Kg7 {[%clk 0:00:13]} 33. f5 {[%clk 0:00:14]}  gxf5 {[%clk 0:00:08]} 34. Bxf5 {[%clk 0:00:13]}  Bc5 {[%clk 0:00:07]} 35. Qe5+ {[%clk 0:00:06]}  Qxe5 {[%clk 0:00:06]} 36. Rxe5 {[%clk 0:00:07]}  Bxa3 {[%clk 0:00:05]} 37. Re6 {[%clk 0:00:06]}  Bc5 {[%clk 0:00:04]} 38. Re1 {[%clk 0:00:06]}  a5 {[%clk 0:00:04]} 39. Be6 {[%clk 0:00:06]}  a4 {[%clk 0:00:04]} 40. Rd1 {[%clk 0:00:07]}  a3 {[%clk 0:00:03]} 41. Ra1 {[%clk 0:00:05]}  b5 {[%clk 0:00:02]} 42. Kf1 {[%clk 0:00:06]}  b4 {[%clk 0:00:02]} 43. Ke2 {[%clk 0:00:04]}  Kf6 {[%clk 0:00:03]} 44. Rc1 {[%clk 0:00:05]}  a2 {[%clk 0:00:02]} 45. Bf5 {[%clk 0:00:04]}  Bd4 {[%clk 0:00:02]} 46. Rc5 {[%clk 0:00:05]}  Bxc5 {[%clk 0:00:02]} 47. Bb1 {[%clk 0:00:05]}  a1=Q {[%clk 0:00:03]} 48. Bd3 {[%clk 0:00:05]}  Ke5 {[%clk 0:00:03]} 49. Kf3 {[%clk 0:00:06]}  Kd4 {[%clk 0:00:04]} 50. Kg2 {[%clk 0:00:07]}  Kc3 {[%clk 0:00:05]} 51. Be2 {[%clk 0:00:08]}  Kd4 {[%clk 0:00:05]} 52. Bf3 {[%clk 0:00:09]}  Qb2 {[%clk 0:00:06]} 53. g4 {[%clk 0:00:10]}  Qd2 {[%clk 0:00:07]} 54. Kg3 {[%clk 0:00:11]}  Qc1 {[%clk 0:00:06]} 55. Bg2 {[%clk 0:00:12]}  b3 {[%clk 0:00:07]} 56. f3 {[%clk 0:00:12]}  b2 {[%clk 0:00:08]} 0-1


[Site "https://www.chess.com"]

[Event "Titled Tuesday Blitz March 15 Early 2022"]
[White "Alinasab, Mobina"]
[Black "Agibileg, Uurtsaikh"]
[WhiteFideId "12528897"]
[BlackFideId "4901606"]
[WhiteElo "2052"]
[BlackElo "2205"]
[Result "0-1"]
[Round "04"]
[TimeControl "180+1"]
[Date "2022.03.15"]
[WhiteClock "0:00:07"]
[BlackClock "0:00:13"]

1. e4 {[%clk 0:02:35]}  c5 {[%clk 0:02:59]} 2. Nf3 {[%clk 0:02:35]}  e6 {[%clk 0:02:59]} 3. d4 {[%clk 0:02:35]}  cxd4 {[%clk 0:03:00]} 4. Nxd4 {[%clk 0:02:36]}  Nc6 {[%clk 0:03:01]} 5. Nc3 {[%clk 0:02:37]}  Qc7 {[%clk 0:03:00]} 6. g3 {[%clk 0:02:37]}  a6 {[%clk 0:02:59]} 7. Bg2 {[%clk 0:02:38]}  d6 {[%clk 0:03:00]} 8. O-O {[%clk 0:02:38]}  Bd7 {[%clk 0:03:00]} 9. Re1 {[%clk 0:02:39]}  Be7 {[%clk 0:03:00]} 10. Nxc6 {[%clk 0:02:38]}  Bxc6 {[%clk 0:02:53]} 11. Ne2 {[%clk 0:02:36]}  Nf6 {[%clk 0:02:53]} 12. Nd4 {[%clk 0:02:36]}  Bd7 {[%clk 0:02:50]} 13. Qd3 {[%clk 0:02:34]}  O-O {[%clk 0:02:49]} 14. c4 {[%clk 0:02:34]}  Rfc8 {[%clk 0:02:43]} 15. b3 {[%clk 0:02:33]}  b5 {[%clk 0:02:43]} 16. cxb5 {[%clk 0:02:31]}  axb5 {[%clk 0:02:44]} 17. Nxb5 {[%clk 0:02:31]}  Qc2 {[%clk 0:02:31]} 18. Qxc2 {[%clk 0:02:17]}  Rxc2 {[%clk 0:02:32]} 19. Nd4 {[%clk 0:02:17]}  Rcxa2 {[%clk 0:02:30]} 20. Rxa2 {[%clk 0:02:17]}  Rxa2 {[%clk 0:02:31]} 21. Re2 {[%clk 0:02:01]}  Ra1 {[%clk 0:01:48]} 22. Rc2 {[%clk 0:01:59]}  d5 {[%clk 0:01:48]} 23. exd5 {[%clk 0:00:17]}  Ba3 {[%clk 0:01:47]} 24. Ne2 {[%clk 0:00:16]}  exd5 {[%clk 0:01:27]} 25. Bf1 {[%clk 0:00:16]}  Bf8 {[%clk 0:01:08]} 26. Bb2 {[%clk 0:00:14]}  Re1 {[%clk 0:01:07]} 27. Bc3 {[%clk 0:00:13]}  Rb1 {[%clk 0:01:02]} 28. Rb2 {[%clk 0:00:13]}  Rd1 {[%clk 0:01:02]} 29. Rd2 {[%clk 0:00:12]}  Rxd2 {[%clk 0:00:58]} 30. Bxd2 {[%clk 0:00:12]}  Ne4 {[%clk 0:00:59]} 31. Be3 {[%clk 0:00:13]}  Nc5 {[%clk 0:00:54]} 32. Nd4 {[%clk 0:00:12]}  Ne4 {[%clk 0:00:40]} 33. f3 {[%clk 0:00:11]}  Nc3 {[%clk 0:00:40]} 34. Kf2 {[%clk 0:00:11]}  f6 {[%clk 0:00:38]} 35. Bd3 {[%clk 0:00:11]}  Kf7 {[%clk 0:00:36]} 36. Bd2 {[%clk 0:00:12]}  Na2 {[%clk 0:00:35]} 37. Ke3 {[%clk 0:00:11]}  Bc5 {[%clk 0:00:34]} 38. Bb1 {[%clk 0:00:08]}  Nb4 {[%clk 0:00:32]} 39. Bxb4 {[%clk 0:00:09]}  Bxb4 {[%clk 0:00:32]} 40. Bf5 {[%clk 0:00:10]}  Bxf5 {[%clk 0:00:21]} 41. Nxf5 {[%clk 0:00:10]}  Bc5+ {[%clk 0:00:20]} 42. Kd3 {[%clk 0:00:10]}  g6 {[%clk 0:00:19]} 43. Nd4 {[%clk 0:00:10]}  Ke7 {[%clk 0:00:18]} 44. Kc3 {[%clk 0:00:10]}  Kd6 {[%clk 0:00:17]} 45. b4 {[%clk 0:00:11]}  Bb6 {[%clk 0:00:17]} 46. Kd3 {[%clk 0:00:08]}  Ke5 {[%clk 0:00:14]} 47. f4+ {[%clk 0:00:07]}  Kd6 {[%clk 0:00:13]} 48. h3 {[%clk 0:00:07]}  f5 {[%clk 0:00:12]} 49. g4 {[%clk 0:00:07]}  fxg4 {[%clk 0:00:12]} 50. hxg4 {[%clk 0:00:08]}  Bxd4 {[%clk 0:00:10]} 51. Kxd4 {[%clk 0:00:08]}  h5 {[%clk 0:00:11]} 52. gxh5 {[%clk 0:00:08]}  gxh5 {[%clk 0:00:12]} 53. f5 {[%clk 0:00:06]}  h4 {[%clk 0:00:12]} 54. f6 {[%clk 0:00:07]}  h3 {[%clk 0:00:13]} 55. f7 {[%clk 0:00:04]}  Ke7 {[%clk 0:00:13]} 56. b5 {[%clk 0:00:05]}  h2 {[%clk 0:00:13]} 57. b6 {[%clk 0:00:06]}  h1=Q {[%clk 0:00:13]} 58. b7 {[%clk 0:00:07]}  Qb1 {[%clk 0:00:13]} 0-1


[Site "https://www.chess.com"]

[Event "Titled Tuesday Blitz March 15 Early 2022"]
[White "Andreikin, Dmitry"]
[Black "Shtyka, Sergey"]
[WhiteFideId "4158814"]
[BlackFideId "4138465"]
[WhiteElo "2736"]
[BlackElo "2014"]
[Result "1-0"]
[Round "04"]
[TimeControl "180+1"]
[Date "2022.03.15"]
[WhiteClock "0:01:03"]
[BlackClock "0:00:20"]

1. e4 {[%clk 0:01:48]}  c5 {[%clk 0:02:37]} 2. Nf3 {[%clk 0:01:47]}  Nc6 {[%clk 0:02:37]} 3. d4 {[%clk 0:01:47]}  cxd4 {[%clk 0:02:37]} 4. Nxd4 {[%clk 0:01:47]}  Nf6 {[%clk 0:02:38]} 5. Nc3 {[%clk 0:01:47]}  e5 {[%clk 0:02:38]} 6. Nde2 {[%clk 0:01:47]}  Be7 {[%clk 0:02:36]} 7. g3 {[%clk 0:01:46]}  O-O {[%clk 0:02:36]} 8. Bg2 {[%clk 0:01:47]}  d6 {[%clk 0:02:37]} 9. O-O {[%clk 0:01:47]}  a6 {[%clk 0:02:31]} 10. h3 {[%clk 0:01:46]}  b5 {[%clk 0:02:31]} 11. g4 {[%clk 0:01:45]}  Bb7 {[%clk 0:02:28]} 12. Ng3 {[%clk 0:01:45]}  g6 {[%clk 0:02:19]} 13. Bh6 {[%clk 0:01:44]}  Re8 {[%clk 0:02:19]} 14. Qd2 {[%clk 0:01:45]}  Nd4 {[%clk 0:02:16]} 15. Rad1 {[%clk 0:01:43]}  Rc8 {[%clk 0:02:14]} 16. a3 {[%clk 0:01:40]}  a5 {[%clk 0:02:13]} 17. Nf5 {[%clk 0:01:39]}  b4 {[%clk 0:02:05]} 18. axb4 {[%clk 0:01:39]}  axb4 {[%clk 0:02:05]} 19. Nxe7+ {[%clk 0:01:40]}  Qxe7 {[%clk 0:01:58]} 20. Nd5 {[%clk 0:01:24]}  Nxd5 {[%clk 0:01:29]} 21. exd5 {[%clk 0:01:25]}  Rxc2 {[%clk 0:01:21]} 22. Qxb4 {[%clk 0:01:25]}  Ba6 {[%clk 0:01:21]} 23. Rfe1 {[%clk 0:01:22]}  Ne2+ {[%clk 0:00:57]} 24. Kh2 {[%clk 0:01:21]}  Qc7 {[%clk 0:00:45]} 25. Qa4 {[%clk 0:01:15]}  Ra8 {[%clk 0:00:40]} 26. Ra1 {[%clk 0:01:16]}  f6 {[%clk 0:00:30]} 27. b4 {[%clk 0:01:08]}  Bb7 {[%clk 0:00:26]} 28. Qb5 {[%clk 0:01:06]}  Rb8 {[%clk 0:00:20]} 29. Rxe2 {[%clk 0:01:03]} 1-0


[Site "https://www.chess.com"]

[Event "Titled Tuesday Blitz March 15 Early 2022"]
[White "Babazada, Khazar"]
[Black "Niemann, Hans Moke"]
[WhiteFideId "13413554"]
[BlackFideId "2093596"]
[WhiteElo "2418"]
[BlackElo "2632"]
[Result "0-1"]
[Round "04"]
[TimeControl "180+1"]
[Date "2022.03.15"]
[WhiteClock "0:00:23"]
[BlackClock "0:00:47"]

1. Nf3 {[%clk 0:02:56]}  c5 {[%clk 0:02:18]} 2. g3 {[%clk 0:02:57]}  Nc6 {[%clk 0:02:17]} 3. Bg2 {[%clk 0:02:57]}  e5 {[%clk 0:02:17]} 4. O-O {[%clk 0:02:57]}  d5 {[%clk 0:02:17]} 5. c4 {[%clk 0:02:56]}  d4 {[%clk 0:02:17]} 6. e3 {[%clk 0:02:57]}  e4 {[%clk 0:02:10]} 7. Ne1 {[%clk 0:02:57]}  Nf6 {[%clk 0:02:07]} 8. d3 {[%clk 0:02:57]}  Bg4 {[%clk 0:02:07]} 9. Qb3 {[%clk 0:02:49]}  Qd7 {[%clk 0:02:04]} 10. dxe4 {[%clk 0:02:39]}  Be2 {[%clk 0:02:04]} 11. e5 {[%clk 0:02:30]}  Ng4 {[%clk 0:01:53]} 12. e6 {[%clk 0:01:52]}  fxe6 {[%clk 0:01:51]} 13. h3 {[%clk 0:01:53]}  Nf6 {[%clk 0:01:41]} 14. Na3 {[%clk 0:01:45]}  Be7 {[%clk 0:01:36]} 15. exd4 {[%clk 0:01:34]}  Nxd4 {[%clk 0:01:27]} 16. Qxb7 {[%clk 0:01:34]}  Qxb7 {[%clk 0:01:27]} 17. Bxb7 {[%clk 0:01:35]}  Rb8 {[%clk 0:01:27]} 18. Bg2 {[%clk 0:01:35]}  O-O {[%clk 0:01:27]} 19. b3 {[%clk 0:01:32]}  Rfd8 {[%clk 0:01:24]} 20. Be3 {[%clk 0:01:32]}  Rb6 {[%clk 0:01:19]} 21. Nec2 {[%clk 0:01:27]}  Bxf1 {[%clk 0:01:18]} 22. Kxf1 {[%clk 0:01:25]}  e5 {[%clk 0:01:18]} 23. Ke1 {[%clk 0:01:03]}  Rbd6 {[%clk 0:01:01]} 24. Bxd4 {[%clk 0:00:50]}  exd4 {[%clk 0:00:58]} 25. Kd2 {[%clk 0:00:42]}  a6 {[%clk 0:00:58]} 26. Re1 {[%clk 0:00:39]}  Kf7 {[%clk 0:00:59]} 27. Kd3 {[%clk 0:00:39]}  Re6 {[%clk 0:00:54]} 28. Rxe6 {[%clk 0:00:39]}  Kxe6 {[%clk 0:00:55]} 29. Nb1 {[%clk 0:00:40]}  Nd7 {[%clk 0:00:53]} 30. Bd5+ {[%clk 0:00:31]}  Kf6 {[%clk 0:00:53]} 31. f4 {[%clk 0:00:29]}  g5 {[%clk 0:00:52]} 32. Nd2 {[%clk 0:00:29]}  gxf4 {[%clk 0:00:51]} 33. gxf4 {[%clk 0:00:29]}  Bd6 {[%clk 0:00:52]} 34. Ne4+ {[%clk 0:00:27]}  Ke7 {[%clk 0:00:52]} 35. f5 {[%clk 0:00:24]}  Bf4 {[%clk 0:00:47]} 36. b4 {[%clk 0:00:23]}  Ne5+ {[%clk 0:00:47]} 0-1


[Site "https://www.chess.com"]